bitfinex/quotes_ETHUSD_20250623
["timestamp","ask_amount","ask_price","bid_price","bid_amount"]
[1750697192370,28.01115241,2238.0,2236.6,0.2493803]
[1750697192573,28.01115241,2238.0,2236.4,4.72066555]
[1750697192781,3.692,2238.0,2237.1,4.46988943]
[1750697192987,14.31915241,2237.8,2236.8,5.1353867]
[1750697193195,25.06115241,2238.1,2236.9,0.66491092]
[1750697193402,0.44080006,2239.3,2236.8,4.47064603]
[1750697193403,17.98215241,2239.1,2237.0,1.48681092]
[1750697193689,17.98215241,2239.1,2237.6,4.46897248]
[1750697193690,14.31915241,2238.7,2237.6,4.46897248]
[1750697193988,10.0,2238.6,2237.6,4.46902836]
[1750697194196,1.43191524,2238.6,2237.5,0.41556933]
[1750697194490,3.663,2238.5,2237.5,4.46927374]
[1750697194661,3.663,2238.5,2237.4,4.46930998]
[1750697194855,0.1718654,2239.0,2237.6,4.4689847]
[1750697195195,0.1718654,2239.0,2237.6,0.41495312]
[1750697195480,0.1718654,2239.0,2237.8,0.8246]
[1750697195804,0.1718654,2239.0,2238.1,4.46807559]
[1750697196076,0.1718654,2239.0,2238.2,0.6634131]
[1750697196278,0.1718654,2239.0,2238.3,0.41467142]
[1750697196444,0.1718654,2239.0,2238.1,10.67876691]
[1750697196642,0.1718654,2239.0,2238.2,0.41361362]
[1750697196643,14.31915241,2238.5,2238.2,0.41361362]
[1750697196841,14.31915241,2238.5,2237.4,4.4693435]
[1750697197097,14.31915241,2238.5,2237.2,0.41367781]
[1750697197098,10.0,2238.0,2237.2,0.41367781]
[1750697197300,10.0,2238.4,2236.7,4.913586]
[1750697197301,17.98115241,2237.9,2236.7,4.913586]
[1750697197500,14.31915241,2237.5,2236.8,4.47055865]
[1750697197664,3.662,2237.5,2236.6,4.47089723]
[1750697197863,3.162,2237.5,2236.6,0.41378893]
[1750697198065,3.162,2237.5,2236.0,0.66209933]
[1750697198066,10.0,2237.3,2236.0,0.66209933]
[1750697198395,3.162,2237.5,2236.0,0.41381208]
[1750697198396,10.0,2236.9,2236.0,0.41381208]
[1750697198579,14.31915241,2237.0,2236.0,0.23936337]
[1750697198786,14.31915241,2237.0,2235.5,0.41400212]
[1750697198787,14.31915241,2237.0,2235.9,4.47233385]
[1750697199083,14.31915241,2237.0,2235.6,0.66240339]
[1750697199283,1.79811524,2237.8,2235.7,0.41400212]
[1750697199600,1.79811524,2237.8,2233.5,7.00931298]
[1750697199601,10.82800424,2235.7,2233.5,7.00931298]
[1750697199897,10.82800424,2235.7,2232.1,3.662]
[1750697199898,14.31915241,2234.0,2233.1,0.8304]
[1750697200098,1.98827997,2233.9,2233.2,0.37380557]
[1750697200396,3.49269411,2235.5,2233.2,0.37380557]
[1750697200581,14.31915241,2235.1,2233.7,4.47669476]
[1750697200901,10.0,2235.3,2233.8,0.37370516]
[1750697201265,10.0,2235.3,2234.0,4.47609816]
[1750697201620,17.98215241,2235.4,2234.1,0.37365498]
[1750697201927,14.31915241,2234.6,2234.1,0.37365498]
[1750697202057,14.31915241,2234.2,2232.9,0.7966]
[1750697202260,14.31915241,2234.2,2233.0,0.37383905]
[1750697202706,10.0,2234.1,2233.0,0.37383905]
[1750697202916,14.31915241,2233.8,2233.0,0.37383905]
[1750697203061,11.43191524,2233.7,2233.0,0.37383905]
[1750697203980,14.31915241,2233.4,2233.0,0.37383905]
[1750697204186,10.0,2233.3,2233.0,0.37383905]
[1750697205977,15.10991524,2233.7,2233.0,0.37383905]
[1750697205978,1.43191524,2233.7,2233.0,0.37383905]
[1750697206179,14.31915241,2233.7,2233.0,0.37383905]
[1750697206583,0.37327624,2233.6,2232.1,0.8322]
[1750697206779,10.37327624,2233.6,2232.1,0.8322]
[1750697206988,14.31915241,2232.9,2232.1,0.8322]
[1750697207181,15.75106765,2232.9,2231.7,0.0762369]
[1750697207381,10.0,2232.8,2231.7,0.0762369]
[1750697207585,14.31915241,2232.5,2231.7,0.0762369]
[1750697208110,14.31915241,2232.1,2231.7,0.0762369]
[1750697210477,0.37264051,2232.0,2231.9,5.31148747]
[1750697210671,3.668,2233.4,2231.9,5.31148747]
[1750697210871,0.28011281,2233.3,2232.0,14.49928673]
[1750697211066,0.28011281,2233.3,2232.5,4.47927875]
[1750697211323,0.28011281,2233.3,2232.5,4.47914874]
[1750697211486,0.28011281,2233.3,2232.1,10.019]
[1750697211824,0.28011281,2233.3,2232.2,4.47988531]
[1750697211983,0.28011281,2233.3,2232.8,4.47857925]
[1750697212175,0.28011281,2233.3,2232.2,10.02]
[1750697212371,0.28011281,2233.3,2232.5,4.47909572]
[1750697212570,0.28011281,2233.3,2232.4,4.47936107]
[1750697212797,0.28011281,2233.3,2231.9,0.831]
[1750697212798,14.31915241,2233.1,2231.9,0.831]
[1750697213000,14.31915241,2232.7,2231.7,0.0762369]
[1750697213437,14.31915241,2232.7,2231.7,4.55708519]
[1750697213608,14.31915241,2232.7,2231.7,0.0762369]
[1750697213944,14.31915241,2232.3,2231.7,0.0762369]
[1750697214385,14.31915241,2232.4,2231.7,0.0762369]
[1750697215289,10.0,2232.5,2231.7,0.0762369]
[1750697215484,10.756,2232.6,2231.7,0.0762369]
[1750697215691,10.756,2232.6,2231.8,4.48053353]
[1750697215895,10.756,2232.6,2231.7,0.0762369]
[1750697216623,10.756,2232.6,2231.8,4.48068297]
[1750697216802,10.756,2232.6,2232.0,4.48027999]
[1750697217136,10.756,2232.6,2231.7,0.0762369]
[1750697217508,10.0,2232.5,2231.7,0.0762369]
[1750697218918,14.31915241,2232.2,2231.7,0.0762369]
[1750697219120,10.0,2232.5,2231.7,0.0762369]
[1750697220374,0.23417208,2234.7,2232.0,0.7812]
[1750697220509,0.23417208,2234.7,2231.7,0.0762369]
[1750697220510,14.31915241,2233.2,2231.7,0.0762369]
[1750697220846,10.0,2232.3,2231.7,0.0762369]
[1750697221051,3.67,2232.2,2231.7,0.0762369]
[1750697221357,0.28011281,2233.1,2232.0,14.31915241]
[1750697221518,0.28011281,2233.1,2232.2,4.47988531]
[1750697221866,0.28011281,2233.1,2232.1,0.796]
[1750697221867,10.28011281,2233.1,2232.1,4.48000131]
[1750697222158,12.45992652,2233.0,2231.7,0.0762369]
[1750697222325,10.28026129,2232.9,2231.7,0.0762369]
[1750697222518,0.28026129,2232.8,2231.7,0.0762369]
[1750697222715,10.0,2232.7,2231.7,0.0762369]
[1750697224150,14.31915241,2232.4,2231.7,0.0762369]
[1750697224355,2.43191524,2232.4,2231.7,0.0762369]
[1750697224515,24.31915241,2232.8,2231.7,0.0762369]
[1750697224713,24.31915241,2232.8,2231.9,4.48047557]
[1750697224913,0.23417208,2234.7,2232.5,4.47917099]
[1750697225148,0.28011281,2233.6,2231.9,10.015]
[1750697225355,0.28011281,2233.6,2232.8,4.47866575]
[1750697225537,14.31915241,2233.4,2231.8,15.29053975]
[1750697225964,14.31915241,2233.4,2232.2,4.47975014]
[1750697226131,14.31915241,2233.4,2231.7,0.0762369]
[1750697226132,10.0,2232.9,2231.7,0.0762369]
[1750697226337,10.0,2233.3,2231.8,4.48068823]
[1750697226338,14.31915241,2233.3,2231.8,4.48068823]
[1750697226539,17.13529174,2233.6,2231.7,4.55711659]
[1750697226740,0.28011281,2233.6,2232.1,0.8162]
[1750697226930,0.28011281,2233.6,2232.7,4.47886715]
[1750697227117,0.28011281,2233.6,2232.4,4.47942646]
[1750697227316,0.28011281,2233.6,2232.8,4.47848565]
[1750697227551,0.28011281,2233.6,2232.9,4.47846531]
[1750697227714,0.28011281,2233.6,2232.5,4.47928331]
[1750697227715,0.28011281,2233.6,2232.5,10.012]
[1750697227919,0.28011281,2233.6,2232.8,4.47858429]
[1750697228149,0.28011281,2233.6,2232.6,4.47906863]
[1750697228558,0.41112365,2233.5,2232.4,4.47944589]
[1750697228759,0.41112365,2233.5,2232.2,14.52310364]
[1750697228760,14.31915241,2233.3,2232.2,0.0313298]
[1750697228929,14.31915241,2232.9,2232.2,0.0313298]
[1750697229259,13.2400842,2233.2,2232.2,0.0313298]
[1750697229260,1.7811517,2233.2,2232.2,0.0313298]
[1750697229420,10.4109795,2233.1,2232.2,0.0313298]
[1750697229616,14.31915241,2232.8,2232.2,0.0313298]
[1750697229821,14.31915241,2232.4,2232.2,0.0313298]
[1750697230044,11.0515398,2232.3,2232.2,0.0313298]
[1750697230764,1.0515398,2232.3,2232.2,0.0313298]
[1750697230942,1.0515398,2232.6,2232.2,0.0313298]
[1750697231124,3.58860902,2232.5,2232.2,0.0313298]
[1750697231364,1.0515398,2232.4,2232.2,0.0313298]
[1750697231537,1.0515398,2232.3,2232.2,0.0313298]
[1750697232624,4.7045398,2232.9,2232.2,0.0313298]
[1750697232859,1.0515398,2232.8,2232.2,0.0313298]
[1750697233055,1.0515398,2232.7,2232.2,0.0313298]
[1750697233356,1.33165261,2232.6,2232.2,0.0313298]
[1750697233571,1.0515398,2232.5,2232.2,0.0313298]
[1750697233770,1.0515398,2232.4,2232.2,0.0313298]
[1750697233951,1.0515398,2232.3,2232.2,0.0313298]
[1750697234568,1.0515398,2232.5,2232.2,0.0313298]
[1750697234769,0.28011281,2232.6,2232.2,0.0313298]
[1750697234770,1.0515398,2232.4,2232.2,0.0313298]
[1750697234971,0.28011281,2232.6,2232.2,0.0313298]
[1750697235275,1.05530586,2232.5,2232.2,0.0313298]
[1750697235572,1.05530586,2232.4,2232.2,0.0313298]
[1750697235772,1.05530586,2232.3,2232.2,0.0313298]
[1750697235971,1.05514801,2232.5,2232.2,0.0313298]
[1750697236139,1.05514801,2232.4,2232.3,4.47968463]
[1750697236350,0.28011281,2232.6,2232.2,0.0313298]
[1750697236646,1.05472052,2232.5,2232.2,0.0313298]
[1750697236971,1.05472052,2232.4,2232.2,0.0313298]
[1750697237287,1.05472052,2232.3,2232.2,0.0313298]
[1750697237642,1.05472052,2232.5,2232.2,0.0313298]
[1750697237876,1.05472052,2232.4,2232.2,0.0313298]
[1750697238034,1.05472052,2232.3,2232.2,0.0313298]
[1750697238883,11.05472052,2232.3,2232.2,0.0313298]
[1750697239379,1.05472052,2232.3,2232.2,0.0313298]
[1750697240394,11.05472052,2232.3,2232.2,0.0313298]
[1750697240597,13.73918502,2232.3,2232.2,0.0313298]
[1750697240812,1.05472052,2232.3,2232.2,0.0313298]
[1750697241017,11.05472052,2232.3,2232.2,0.0313298]
[1750697241683,11.33498181,2232.3,2232.2,0.0313298]
[1750697242311,1.33498181,2232.3,2232.2,0.0313298]
[1750697244392,25.65413422,2232.3,2232.2,0.0313298]
[1750697244632,29.21934764,2232.3,2232.2,0.0313298]
[1750697245197,14.90019523,2232.3,2232.2,0.0313298]
[1750697245385,1.33498181,2232.3,2232.2,0.0313298]
[1750697245580,0.28026129,2232.3,2232.2,4.51121511]
[1750697245826,0.28026129,2232.3,2232.2,0.0313298]
[1750697245978,0.28026129,2232.3,2232.2,4.51121511]
[1750697247009,1.05570058,2232.8,2232.3,4.47962003]
[1750697247182,0.41213362,2232.7,2232.4,4.47947714]
[1750697247383,1.05631766,2232.9,2232.2,0.0313298]
[1750697247619,1.46845105,2232.8,2232.2,0.0313298]
[1750697247922,1.46845105,2232.7,2232.2,0.0313298]
[1750697248085,1.14684511,2232.8,2232.2,0.0313298]
[1750697248086,1.46838432,2232.6,2232.2,0.0313298]
[1750697248408,1.46838432,2232.5,2232.2,4.51120133]
[1750697248614,0.37733868,2232.8,2232.3,0.776]
[1750697248790,0.37733868,2232.8,2232.7,4.47888207]
[1750697249130,0.37733868,2232.8,2232.3,0.776]
[1750697249282,15.37593262,2233.5,2232.3,0.776]
[1750697249618,7.03579579,2233.4,2232.3,5.25559343]
[1750697249805,7.03579579,2233.4,2232.3,0.776]
[1750697249806,11.46868447,2233.3,2232.3,0.776]
[1750697249990,1.46868447,2233.2,2232.3,0.776]
[1750697250191,1.46868447,2233.1,2232.2,0.0313298]
[1750697250415,11.46868447,2233.0,2232.2,0.0313298]
[1750697250582,14.69485805,2233.1,2232.2,0.0313298]
[1750697250583,14.31915241,2232.7,2232.2,0.0313298]
[1750697250783,5.12196573,2232.6,2232.2,0.0313298]
[1750697251019,1.46896573,2232.5,2232.2,0.0313298]
[1750697251222,1.46896573,2232.4,2232.2,0.0313298]
[1750697251381,25.37593262,2232.3,2232.2,0.0313298]
[1750697251720,28.32565474,2232.3,2232.2,0.0313298]
[1750697251882,11.46890907,2232.3,2232.2,0.0313298]
[1750697252086,11.46890972,2232.3,2232.2,0.0313298]
[1750697252515,1.46890972,2232.3,2232.2,0.0313298]
[1750697252716,1.05678021,2232.5,2232.2,0.0313298]
[1750697252918,1.05678021,2232.7,2232.2,0.0313298]
[1750697253119,1.05739441,2233.2,2232.2,0.0313298]
[1750697253303,1.05744182,2233.2,2232.3,0.8196]
[1750697253487,1.05744182,2233.2,2232.4,4.47937188]
[1750697253687,3.629,2233.4,2232.4,4.4793864]
[1750697253902,1.46961156,2233.3,2232.5,4.47921639]
[1750697254096,3.90911281,2233.4,2232.4,4.47936553]
[1750697254394,0.28011281,2233.3,2232.4,13.43845188]
[1750697254594,0.28011281,2233.3,2233.2,5.28247927]
[1750697254806,1.05763941,2234.7,2233.2,0.8046]
[1750697255006,14.31915241,2234.8,2233.2,0.8046]
[1750697255007,1.46999415,2234.6,2233.2,0.8046]
[1750697255209,0.7221623,2234.5,2233.6,4.47695356]
[1750697255395,0.72214254,2234.4,2233.2,0.8046]
[1750697255718,0.72214254,2234.4,2233.3,4.47767877]
[1750697255719,0.41230099,2234.3,2233.3,4.47767877]
[1750697256016,6.19076551,2234.3,2233.2,0.8046]
[1750697256220,10.0,2234.2,2232.8,0.7624]
[1750697256525,14.31915241,2234.0,2232.9,4.47837326]
[1750697256725,14.31915241,2234.0,2232.8,5.24094302]
[1750697256726,14.31915241,2233.8,2232.8,0.7624]
[1750697256933,11.43191524,2233.7,2232.4,0.7624]
[1750697257085,11.43191524,2233.7,2232.5,4.47917498]
[1750697257290,11.43191524,2233.7,2232.5,4.47928331]
[1750697257525,3.629,2233.6,2232.6,4.4790101]
[1750697257727,14.31915241,2233.4,2232.4,0.7624]
[1750697257938,14.31915241,2233.4,2232.2,0.0313298]
[1750697257939,11.43191524,2233.3,2232.2,0.0313298]
[1750697258421,14.31915241,2233.0,2232.2,0.0313298]
[1750697258722,10.0,2232.9,2232.2,0.0313298]
[1750697258927,14.31915241,2232.6,2232.2,0.0313298]
[1750697259139,3.629,2232.8,2232.2,0.0313298]
[1750697259285,7.46666702,2232.8,2232.2,0.0313298]
[1750697260232,14.31915241,2232.5,2232.2,0.0313298]
[1750697261342,10.0,2232.4,2232.2,0.0313298]
[1750697262023,7.46666702,2232.8,2232.2,0.0313298]
[1750697262024,10.0,2232.7,2232.2,0.0313298]
[1750697262657,10.0,2232.5,2232.2,0.0313298]
[1750697262865,10.0,2232.3,2232.2,0.0313298]
[1750697263226,21.174406,2232.3,2232.2,0.0313298]
[1750697263460,22.22854606,2232.3,2232.2,0.0313298]
[1750697263680,25.85755452,2232.3,2232.2,0.0313298]
[1750697263893,24.392,2232.3,2232.2,0.0313298]
[1750697264189,10.763,2232.3,2232.2,0.0313298]
[1750697264541,13.2022,2232.3,2232.2,0.0313298]
[1750697265398,23.2022,2232.3,2232.2,0.0313298]
[1750697266172,33.1642,2232.3,2232.2,0.0313298]
[1750697266335,30.725,2232.3,2232.2,0.0313298]
[1750697266963,20.763,2232.3,2232.2,0.0313298]
[1750697267344,10.763,2232.3,2232.2,0.0313298]
[1750697269701,25.08215241,2232.3,2232.2,0.0313298]
[1750697269975,45.03815241,2232.3,2232.2,0.0313298]
[1750697270178,49.44479763,2232.3,2232.2,0.0313298]
[1750697270474,24.393,2232.3,2232.2,0.0313298]
[1750697271022,38.71215241,2232.3,2232.2,0.0313298]
[1750697271195,20.763,2232.3,2232.2,0.0313298]
[1750697271694,10.763,2232.3,2232.2,0.0313298]
[1750697271900,1.43191524,2233.3,2232.2,0.8079298]
[1750697271901,10.765,2233.3,2232.2,0.8079298]
[1750697272200,10.0,2233.2,2232.2,0.8079298]
[1750697272482,24.31915241,2233.2,2232.2,0.8079298]
[1750697272795,20.717,2233.3,2232.2,0.8079298]
[1750697272958,10.0,2233.2,2232.3,4.47953382]
[1750697273464,20.717,2233.3,2232.5,4.47923831]
[1750697273692,20.717,2233.3,2232.2,0.8079298]
[1750697273693,22.59391442,2233.3,2232.2,5.28771146]
[1750697273898,19.948,2233.2,2232.2,0.8079298]
[1750697274046,19.948,2233.2,2232.2,5.2877033]
[1750697274493,19.948,2233.2,2232.2,0.8079298]
[1750697274781,10.0,2232.6,2232.2,0.0313298]
[1750697274971,10.0,2232.4,2232.2,0.0313298]
[1750697275481,3.63,2232.4,2232.2,0.0313298]
[1750697276114,10.0,2232.3,2232.2,0.0313298]
[1750697276983,13.63,2232.3,2232.2,0.0313298]
[1750697277879,14.68073768,2232.3,2230.6,5.25406605]
[1750697278082,10.0,2231.7,2230.6,5.25398148]
[1750697278281,10.0,2231.7,2230.6,0.771]
[1750697278515,10.0,2231.7,2230.8,4.48269585]
[1750697278828,10.0,2231.7,2230.6,0.771]
[1750697279120,14.31915241,2231.3,2230.0,1.0369526]
[1750697279413,24.99891524,2231.2,2230.0,5.52117205]
[1750697279616,24.99891524,2231.2,2230.0,1.0369526]
[1750697279836,14.31915241,2230.9,2230.0,1.0369526]
[1750697280028,24.99891524,2231.2,2230.0,1.0369526]
[1750697280029,10.0,2230.4,2230.0,0.2246526]
[1750697280184,24.31915241,2230.1,2230.0,0.2246526]
[1750697280512,24.31915241,2230.1,2228.5,4.94660791]
[1750697280513,28.10756765,2230.1,2228.6,0.7775]
[1750697280717,10.0,2229.6,2228.6,0.7775]
[1750697280944,10.0,2229.2,2228.0,0.7548]
[1750697281116,10.0,2228.8,2228.1,0.37466119]
[1750697281289,10.0,2228.6,2228.1,0.37466119]
[1750697281485,10.0,2229.1,2228.1,0.37466119]
[1750697281735,13.631,2229.1,2228.2,0.7927]
[1750697281889,13.631,2229.1,2227.8,0.2246526]
[1750697281890,10.0,2228.8,2228.3,0.37462756]
[1750697282306,14.31915241,2229.4,2228.3,0.37462756]
[1750697282644,10.767,2230.6,2229.5,0.8123]
[1750697282924,14.31915241,2230.1,2229.0,4.48631099]
[1750697283128,10.0,2230.0,2229.1,4.48611366]
[1750697283285,14.31915241,2229.6,2228.6,0.8123]
[1750697283486,10.0,2229.5,2228.6,0.8123]
[1750697283905,3.592,2229.5,2228.6,0.8123]
[1750697284230,10.0,2229.4,2228.6,0.8123]
[1750697284614,10.0,2229.4,2228.2,0.7559]
[1750697284615,10.0,2229.2,2228.2,0.7559]
[1750697284819,10.0,2229.0,2227.8,5.46915843]
[1750697284992,14.31915241,2228.7,2227.8,0.2246526]
[1750697285328,10.0,2228.2,2227.8,0.2246526]
[1750697285633,3.592,2228.2,2227.8,0.2246526]
[1750697285805,10.0,2228.5,2227.8,0.2246526]
[1750697286407,17.91115241,2228.6,2227.8,0.2246526]
[1750697286408,10.0,2228.1,2227.8,0.2246526]
[1750697287434,10.0,2227.9,2227.8,0.2246526]
[1750697287834,3.594,2227.9,2227.8,0.2246526]
[1750697288137,14.9534,2227.9,2227.8,0.2246526]
[1750697288320,10.0,2227.8,2226.6,0.7659]
[1750697288520,11.3594,2227.9,2226.6,0.7659]
[1750697288521,10.0,2227.6,2226.6,0.7659]
[1750697288832,10.0,2227.4,2226.3,4.49165421]
[1750697289036,14.31915241,2227.7,2226.5,4.49115711]
[1750697289037,10.0,2227.6,2226.5,4.49115711]
[1750697289208,10.0,2227.2,2226.5,0.7786]
[1750697289723,10.0,2227.2,2225.7,0.805]
[1750697289927,10.0,2227.2,2226.0,4.49235685]
[1750697290127,3.595,2227.2,2226.5,4.49133535]
[1750697290329,3.595,2227.2,2226.3,4.49162532]
[1750697290666,23.8825,2227.1,2226.1,4.49202345]
[1750697290957,14.31915241,2226.8,2225.9,0.805]
[1750697291135,14.31915241,2226.8,2225.6,0.2246526]
[1750697291136,14.31915241,2226.4,2225.6,0.2246526]
[1750697291337,3.595,2226.3,2225.6,0.2246526]
[1750697292221,10.0,2226.0,2225.6,0.2246526]
[1750697292424,2.43191524,2225.9,2225.6,0.2246526]
[1750697292609,3.595,2225.8,2225.6,0.2246526]
[1750697292945,34.24315241,2225.7,2223.8,0.8311]
[1750697293142,34.24315241,2225.7,2223.8,5.32783251]
[1750697293143,10.0,2224.9,2223.8,5.32783251]
[1750697293353,10.0,2224.9,2223.8,0.8311]
[1750697293354,10.0,2224.7,2223.8,0.8311]
[1750697293523,2.3525,2224.6,2223.8,0.8311]
[1750697293846,2.3525,2224.6,2223.3,0.9781526]
[1750697294053,13.523,2224.5,2223.7,4.49687254]
[1750697294214,2.3525,2224.6,2223.9,4.49648673]
[1750697294418,10.0,2224.9,2223.4,4.49761626]
[1750697294734,13.522,2224.8,2223.3,0.9781526]
[1750697294948,13.522,2224.8,2223.8,4.4967015]
[1750697295143,14.31915241,2223.9,2223.3,0.2246526]
[1750697295313,10.0,2223.7,2223.3,0.2246526]
[1750697295515,1.3597,2223.6,2223.3,0.2246526]
[1750697295750,13.597,2223.8,2223.3,0.2246526]
[1750697295945,10.0,2223.9,2223.3,0.2246526]
[1750697296151,10.0,2223.7,2223.3,0.2246526]
[1750697296356,14.31915241,2223.6,2223.3,0.2246526]
[1750697296556,13.51091524,2223.5,2223.3,0.2246526]
[1750697296748,13.51091524,2223.5,2221.9,0.813]
[1750697296749,10.0,2222.9,2221.7,4.50100843]
[1750697297053,10.0,2222.9,2221.5,0.8448732]
[1750697297054,3.599,2222.9,2222.4,4.49963626]
[1750697297214,3.599,2222.9,2221.9,4.50055782]
[1750697297418,3.599,2222.9,2221.9,4.50046844]
[1750697297625,1.3599,2222.8,2221.9,4.50047919]
[1750697297825,1.3599,2222.8,2221.5,5.34632524]
[1750697297826,3.599,2222.8,2222.2,4.49988362]
[1750697298029,3.599,2222.8,2221.5,0.8448732]
[1750697298030,10.0,2222.7,2221.5,0.8448732]
[1750697298310,10.0,2222.7,2221.7,4.50091146]
[1750697298311,19.924,2222.7,2221.7,4.50091146]
[1750697298534,14.31915241,2223.0,2222.0,4.50032308]
[1750697298746,13.599,2222.9,2221.5,0.8448732]
[1750697299070,14.9589,2222.9,2222.3,4.4998118]
[1750697299272,3.51091524,2223.5,2221.9,0.7538]
[1750697299485,17.92015241,2223.5,2221.9,0.7538]
[1750697299628,14.31915241,2223.0,2221.9,5.25432084]
[1750697299971,10.0,2222.9,2221.5,0.7909732]
[1750697300132,10.0,2223.6,2221.5,0.7909732]
[1750697300336,10.0,2223.1,2221.5,0.7909732]
[1750697300636,10.0,2222.7,2221.6,4.50114661]
[1750697300862,3.601,2222.7,2221.5,0.7909732]
[1750697301176,3.601,2222.7,2221.6,4.50107315]
[1750697301377,3.601,2222.7,2221.5,5.29234501]
[1750697301579,10.0,2222.5,2221.5,0.7909732]
[1750697301764,10.0,2222.3,2221.5,0.0318732]
[1750697301965,10.0,2222.0,2221.5,0.0318732]
[1750697302175,26.47525241,2222.4,2221.5,0.0318732]
[1750697302393,23.529,2222.3,2221.5,0.0318732]
[1750697302596,10.0,2221.9,2221.5,0.0318732]
[1750697302926,10.0,2222.2,2221.5,0.0318732]
[1750697303130,12.1561,2222.4,2221.5,0.0318732]
[1750697303131,14.398,2222.4,2221.5,0.0318732]
[1750697303587,10.796,2222.4,2221.5,0.0318732]
[1750697303769,2.43191524,2223.0,2221.5,0.0318732]
[1750697303971,11.035843,2223.5,2221.5,0.0318732]
[1750697303972,14.31915241,2222.5,2221.5,0.0318732]
[1750697304282,10.0,2222.0,2221.5,0.0318732]
[1750697304491,3.602,2221.9,2221.5,0.0318732]
[1750697304687,10.0,2221.8,2221.5,0.0318732]
[1750697304925,10.0,2221.6,2221.5,0.0318732]
[1750697305070,25.95891524,2221.6,2221.5,0.0318732]
[1750697305273,10.801,2222.1,2221.5,0.0318732]
[1750697305274,10.0,2221.9,2221.5,0.0318732]
[1750697305474,3.604,2221.8,2221.5,0.0318732]
[1750697306014,14.31915241,2222.0,2221.5,0.0318732]
[1750697306015,10.0,2222.0,2221.5,0.0318732]
[1750697306213,10.0,2221.9,2221.5,0.0318732]
[1750697306776,24.31915241,2221.9,2221.5,0.0318732]
[1750697307012,10.0,2221.7,2221.5,0.0318732]
[1750697307226,3.78461524,2221.8,2221.1,0.2246526]
[1750697307227,10.0,2221.2,2221.1,0.2246526]
[1750697307735,23.526,2221.2,2221.1,0.2246526]
[1750697308012,10.0,2221.2,2219.8,0.7582]
[1750697308375,3.78461524,2221.8,2219.8,5.26296916]
[1750697308577,0.23486085,2222.9,2220.6,5.26141657]
[1750697308578,10.0,2221.2,2220.6,5.26141657]
[1750697308776,25.12015241,2222.1,2220.6,5.26145169]
[1750697309004,14.406,2222.1,2221.0,4.50236086]
[1750697309217,14.406,2222.1,2220.6,0.7582]
[1750697309218,10.0,2222.0,2220.6,0.7582]
[1750697309524,14.406,2222.1,2220.6,5.26144988]
[1750697309525,10.0,2221.8,2220.6,5.26144988]
[1750697309704,3.605,2221.7,2220.6,5.26145377]
[1750697310015,10.0,2221.8,2220.2,0.8316]
[1750697310016,10.0,2221.5,2220.2,0.8316]
[1750697310198,10.0,2221.5,2220.3,4.50384166]
[1750697310525,10.0,2221.5,2220.2,0.8316]
[1750697310526,24.31915241,2221.5,2220.2,0.8316]
[1750697310691,10.0,2221.3,2219.9,4.50464697]
[1750697310905,10.0,2221.3,2219.7,5.30260207]
[1750697311191,16.31741524,2221.4,2219.7,5.3026923]
[1750697311192,10.0,2221.0,2219.7,5.3026923]
[1750697311425,10.0,2220.8,2219.7,0.7976]
[1750697311781,10.0,2220.8,2219.9,4.50470192]
[1750697312087,1.3606,2220.7,2219.8,4.50478912]
[1750697312313,10.0,2220.5,2219.4,4.50571078]
[1750697312523,10.0,2220.1,2218.9,5.29952497]
[1750697312779,10.0,2219.9,2218.9,0.7929]
[1750697312979,10.0,2219.9,2218.6,0.8308]
[1750697313185,10.0,2219.9,2218.7,4.50714382]
[1750697313405,10.0,2219.9,2218.6,0.8308]
[1750697313717,10.0,2219.9,2218.3,0.2683268]
[1750697313718,10.0,2219.7,2218.3,0.2683268]
[1750697313920,2.43191524,2219.6,2218.9,4.50661326]
[1750697314075,10.0,2219.5,2218.3,0.2683268]
[1750697314278,10.0,2219.5,2218.8,4.50685459]
[1750697314483,10.0,2219.5,2218.7,4.50703692]
[1750697314690,10.0,2219.5,2218.3,0.2683268]
[1750697314691,10.0,2219.5,2218.5,0.8132]
[1750697314903,10.0,2219.5,2219.0,4.50641657]
[1750697315108,10.0,2219.5,2218.5,0.8132]
[1750697315308,11.3567,2219.5,2218.5,0.8132]
[1750697315509,11.3567,2219.5,2218.3,4.77628162]
[1750697315783,11.3567,2219.5,2218.3,0.2683268]
[1750697315784,12.1727,2219.5,2218.3,0.2683268]
[1750697316019,10.816,2219.5,2218.4,4.50775333]
[1750697316216,10.816,2219.5,2218.3,0.2683268]
[1750697316217,10.816,2219.5,2218.6,4.5073453]
[1750697316431,10.816,2219.5,2218.5,0.8132]
[1750697316622,10.816,2219.5,2218.3,0.2683268]
[1750697316623,10.0,2219.3,2218.3,0.2683268]
[1750697316796,14.31915241,2219.2,2218.3,0.2683268]
[1750697316995,11.25630856,2219.5,2218.3,0.2683268]
[1750697316996,12.43191524,2219.1,2218.3,0.2683268]
[1750697317212,3.57,2219.3,2218.3,0.2683268]
[1750697317729,10.0,2218.9,2218.3,0.2683268]
[1750697317912,19.918,2218.9,2218.3,0.2683268]
[1750697318833,14.31915241,2218.8,2218.3,0.2683268]
[1750697319132,11.27709315,2219.5,2218.3,0.2683268]
[1750697319133,10.0,2218.4,2218.3,0.2683268]
[1750697319287,11.0,2218.4,2218.3,0.2683268]
[1750697319487,11.27709315,2219.5,2218.3,1.0749268]
[1750697319705,10.816,2219.5,2218.3,5.5827931]
[1750697319907,10.0,2219.4,2218.3,5.58286063]
[1750697320114,10.0,2219.4,2218.3,5.58283951]
[1750697320311,10.816,2219.5,2218.3,1.0749268]
[1750697320509,10.816,2219.5,2218.5,4.50735398]
[1750697320836,10.0,2219.4,2218.3,1.0749268]
[1750697321005,10.0,2219.2,2218.3,5.58275024]
[1750697321212,3.571,2219.9,2218.4,5.05775333]
[1750697321538,10.824,2220.6,2218.4,5.05775333]
[1750697321539,3.571,2220.1,2219.1,4.50619951]
[1750697321712,10.3571,2220.0,2218.6,0.7566]
[1750697321913,0.3571,2220.0,2219.1,4.50616903]
[1750697322099,10.3571,2220.0,2218.7,4.50714382]
[1750697322299,10.824,2220.6,2219.0,0.55]
[1750697322499,10.0,2220.4,2218.9,0.7566]
[1750697322701,10.0,2220.4,2219.0,4.50647076]
[1750697322900,10.0,2220.4,2218.9,0.7566]